bitfinex-derivatives/quotes_ETHF0:USTF0_20260117
["timestamp","ask_amount","ask_price","bid_price","bid_amount"]
[1768639751937,1.11968097,3298.5,3297.5,0.98179227]
[1768639752132,0.25250752,3298.4,3297.5,0.98179227]
[1768639752340,1.698,3298.8,3297.5,0.98179227]
[1768639752542,1.11973421,3298.7,3297.5,0.98179227]
[1768639752735,1.11973421,3298.6,3297.5,0.98179227]
[1768639752934,0.86721488,3298.5,3297.5,0.98179227]
[1768639753134,0.86725866,3298.4,3297.5,0.98179227]
[1768639753329,1.698,3298.8,3297.5,0.98179227]
[1768639753534,1.11979334,3298.7,3297.5,0.98179227]
[1768639753834,1.11979334,3298.6,3297.5,0.98179227]
[1768639754034,0.86726091,3298.5,3297.5,0.98179227]
[1768639754334,0.86726091,3298.4,3297.5,0.98179227]
[1768639754636,1.698,3298.8,3297.7,0.98179227]
[1768639754833,1.11986095,3298.7,3297.7,0.98179227]
[1768639755035,1.11986095,3298.6,3297.7,0.98179227]
[1768639755229,0.86731357,3298.5,3297.7,0.98179227]
[1768639755443,0.86731357,3298.4,3297.7,0.98179227]
[1768639755648,1.698,3298.8,3297.7,0.98179227]
[1768639755946,1.11992588,3298.7,3297.7,0.98179227]
[1768639756244,1.11992588,3298.6,3297.7,0.98179227]
[1768639756444,1.11994237,3298.5,3297.7,0.98179227]
[1768639756744,0.86736404,3298.4,3297.7,0.98179227]
[1768639757043,1.698,3298.8,3297.7,0.98179227]
[1768639757243,1.12003293,3298.7,3297.7,0.98179227]
[1768639757545,1.12003293,3298.6,3297.7,0.98179227]
[1768639757737,1.12003293,3298.5,3297.7,0.98179227]
[1768639757937,0.86744483,3298.4,3297.7,0.98179227]
[1768639758143,1.698,3298.8,3297.7,0.98179227]
[1768639758341,1.12003559,3298.7,3297.7,0.98179227]
[1768639758542,1.12003559,3298.6,3297.7,0.98179227]
[1768639758745,1.12003559,3298.5,3297.7,0.98179227]
[1768639758946,0.86744752,3298.4,3297.7,0.98179227]
[1768639759146,1.698,3298.8,3297.7,0.98179227]
[1768639759347,1.12004034,3298.7,3297.7,0.98179227]
[1768639759644,1.12004034,3298.6,3297.3,0.98179227]
[1768639759947,1.12004627,3298.5,3297.3,0.98179227]
[1768639760141,0.86745706,3298.4,3297.3,0.98179227]
[1768639760341,0.98179227,3298.7,3297.3,0.98179227]
[1768639760640,1.12005488,3298.6,3297.3,0.98179227]
[1768639760840,0.98179227,3298.7,3297.3,0.98179227]
[1768639760841,1.12005488,3298.5,3297.3,0.98179227]
[1768639761041,0.86746223,3298.4,3297.3,0.98179227]
[1768639761234,0.98179227,3298.7,3297.3,0.98179227]
[1768639761439,1.120061,3298.6,3297.3,0.98179227]
[1768639761647,1.120061,3298.5,3297.3,0.98179227]
[1768639761841,0.86746839,3298.4,3297.3,0.98179227]
[1768639762145,0.86746839,3298.3,3297.3,0.98179227]
[1768639762346,0.86746839,3298.2,3297.3,0.98179227]
[1768639762547,0.86746839,3298.1,3297.3,0.98179227]
[1768639762750,0.98179227,3298.7,3297.3,0.98179227]
[1768639762943,1.12007208,3298.6,3297.3,0.98179227]
[1768639763149,1.12007208,3298.5,3297.3,0.98179227]
[1768639763342,0.86747547,3298.4,3297.3,0.98179227]
[1768639763541,0.86747547,3298.3,3297.3,0.98179227]
[1768639763753,0.86747547,3298.2,3297.3,0.98179227]
[1768639764051,0.86747547,3298.1,3297.3,0.98179227]
[1768639764239,0.98179227,3298.7,3297.3,0.98179227]
[1768639764440,1.12078581,3298.6,3297.3,0.98179227]
[1768639764640,1.12078581,3298.5,3297.3,0.98179227]
[1768639764842,0.86818596,3298.4,3297.3,0.98179227]
[1768639765050,0.86818596,3298.3,3297.3,0.98179227]
[1768639765252,0.86818596,3298.2,3297.3,0.98179227]
[1768639765557,0.86818596,3298.1,3297.3,0.98179227]
[1768639765749,0.98179227,3298.7,3297.3,0.98179227]
[1768639765949,1.12080076,3298.6,3297.3,0.98179227]
[1768639766150,1.12080076,3298.5,3297.3,0.98179227]
[1768639766451,0.86819607,3298.4,3297.3,0.98179227]
[1768639766652,0.86819607,3298.3,3297.3,0.98179227]
[1768639766851,0.86819607,3298.2,3297.3,0.98179227]
[1768639767050,0.86819607,3298.1,3297.3,0.98179227]
[1768639767353,0.98179227,3298.7,3297.3,0.98179227]
[1768639767543,1.1208323,3298.6,3297.3,0.98179227]
[1768639767851,1.1208323,3298.5,3297.3,0.98179227]
[1768639768050,0.86822049,3298.4,3297.3,0.98179227]
[1768639768251,0.86822049,3298.3,3297.3,0.98179227]
[1768639768553,0.86822049,3298.2,3297.3,0.98179227]
[1768639768751,0.86822049,3298.1,3297.3,0.98179227]
[1768639769052,0.98179227,3298.7,3297.3,0.98179227]
[1768639769255,1.12085854,3298.6,3297.3,0.98179227]
[1768639769454,1.12085854,3298.5,3297.3,0.98179227]
[1768639769653,0.86824296,3298.4,3297.3,0.98179227]
[1768639769849,0.86824296,3298.3,3297.3,0.98179227]
[1768639770045,0.86824296,3298.2,3297.3,0.98179227]
[1768639770346,0.86824296,3298.1,3297.3,0.98179227]
[1768639770548,0.98179227,3298.7,3297.3,0.98179227]
[1768639770747,1.12087416,3298.6,3297.3,0.98179227]
[1768639771045,1.12087416,3298.5,3297.3,0.98179227]
[1768639771245,0.86825291,3298.4,3297.3,0.98179227]
[1768639771454,0.86825291,3298.3,3297.3,0.98179227]
[1768639771650,2.23981488,3298.8,3297.3,0.98179227]
[1768639771952,1.12089367,3298.7,3297.3,0.98179227]
[1768639772151,1.12089367,3298.6,3297.3,0.98179227]
[1768639772350,1.12089367,3298.5,3297.3,0.98179227]
[1768639772551,0.86826806,3298.4,3297.3,0.98179227]
[1768639772751,0.98179227,3298.7,3297.3,0.98179227]
[1768639772939,1.12091536,3298.6,3297.3,0.98179227]
[1768639773145,1.12091536,3298.5,3297.3,0.98179227]
[1768639773341,0.86828493,3298.4,3297.3,0.98179227]
[1768639773543,0.98179227,3298.7,3297.3,0.98179227]
[1768639773848,1.12093995,3298.6,3297.3,0.98179227]
[1768639774048,1.12093995,3298.5,3297.3,0.98179227]
[1768639774247,0.86830407,3298.4,3297.1,0.98179227]
[1768639774450,0.98179227,3298.5,3297.1,0.98179227]
[1768639774642,0.868324,3298.4,3297.1,0.98179227]
[1768639774843,0.98179227,3298.5,3297.1,0.98179227]
[1768639775047,0.868324,3298.4,3297.1,0.98179227]
[1768639775248,0.98179227,3298.5,3297.1,1.53301443]
[1768639775455,0.86834255,3298.4,3297.1,1.53301443]
[1768639775656,0.98179227,3298.5,3297.1,1.53301443]
[1768639775850,0.8683443,3298.4,3297.1,1.53301443]
[1768639776051,0.98179227,3298.5,3297.1,1.53301443]
[1768639776249,0.8683443,3298.4,3297.1,1.53301443]
[1768639776449,0.98179227,3298.5,3297.1,1.53301443]
[1768639776650,0.86836965,3298.4,3297.1,1.53301443]
[1768639776845,1.54098161,3298.7,3297.3,0.98179227]
[1768639777150,1.1210237,3298.6,3297.3,0.98179227]
[1768639777347,1.1210237,3298.5,3297.3,0.98179227]
[1768639777551,0.86836952,3298.4,3297.3,0.98179227]
[1768639777754,1.54098161,3298.7,3297.3,0.98179227]
[1768639777955,1.12102683,3298.6,3297.3,0.98179227]
[1768639778156,1.12102683,3298.5,3297.3,0.98179227]
[1768639778357,0.86837209,3298.4,3297.3,0.98179227]
[1768639778558,0.98179227,3298.5,3297.1,0.55122216]
[1768639778853,0.86837555,3298.4,3297.1,1.53301443]
[1768639779153,0.98179227,3298.5,3297.1,1.53301443]
[1768639779353,0.8683756,3298.4,3297.1,1.53301443]
[1768639779565,0.98179227,3298.5,3297.1,1.53301443]
[1768639779766,0.86837951,3298.4,3297.1,1.53301443]
[1768639779965,0.98179227,3298.5,3297.1,1.53301443]
[1768639780166,0.86837951,3298.4,3297.1,1.53301443]
[1768639780366,0.98179227,3298.5,3297.1,1.53301443]
[1768639780566,0.86838514,3298.4,3297.1,1.53301443]
[1768639780758,0.98179227,3298.5,3297.1,1.53301443]
[1768639781055,0.86838514,3298.4,3297.1,1.53301443]
[1768639781255,0.98179227,3298.5,3297.1,1.53301443]
[1768639781458,0.86839217,3298.4,3297.1,1.53301443]
[1768639781661,0.86839217,3298.3,3297.1,1.53301443]
[1768639781861,0.98179227,3298.5,3297.1,1.53301443]
[1768639782062,0.86839216,3298.4,3297.1,1.53301443]
[1768639782269,0.86839216,3298.3,3297.1,1.53301443]
[1768639782467,0.98179227,3298.5,3297.1,1.53301443]
[1768639782668,0.86840452,3298.4,3297.1,1.53301443]
[1768639782963,0.86840452,3298.3,3297.1,1.53301443]
[1768639783164,0.98179227,3298.5,3297.1,1.53301443]
[1768639783367,1.12107298,3298.4,3297.1,1.53301443]
[1768639783667,0.86840452,3298.3,3297.1,1.53301443]
[1768639783962,0.98179227,3298.5,3297.1,1.53301443]
[1768639784163,1.12109265,3298.4,3297.1,1.53301443]
[1768639784465,0.86841977,3298.3,3297.1,1.53301443]
[1768639784660,0.55918934,3298.4,3297.0,0.72352076]
[1768639784861,1.85023,3298.3,3297.0,0.72352076]
[1768639785060,0.86843773,3298.2,3297.1,0.98179227]
[1768639785661,0.55918934,3298.4,3297.1,0.98179227]
[1768639785860,0.86844478,3298.3,3297.1,0.98179227]
[1768639786060,0.86844478,3298.2,3297.1,0.98179227]
[1768639786262,0.55918934,3298.4,3297.1,0.98179227]
[1768639786465,0.86842221,3298.3,3297.1,0.98179227]
[1768639786665,0.86842221,3298.2,3297.1,0.98179227]
[1768639786864,0.55918934,3298.4,3297.1,0.98179227]
[1768639787057,0.86842221,3298.3,3297.1,0.98179227]
[1768639787258,0.55918934,3298.4,3297.1,0.98179227]
[1768639787454,0.86839188,3298.3,3297.1,0.98179227]
[1768639787671,0.55918934,3298.4,3297.1,0.98179227]
[1768639787871,0.86839188,3298.3,3297.1,0.98179227]
[1768639788070,0.55918934,3298.4,3297.1,0.98179227]
[1768639788261,0.86839188,3298.3,3297.1,0.98179227]
[1768639788462,0.55918934,3298.4,3297.1,0.98179227]
[1768639788659,0.86836814,3298.3,3297.1,0.98179227]
[1768639788966,0.55918934,3298.4,3297.1,0.98179227]
[1768639789168,0.86836814,3298.3,3297.1,0.98179227]
[1768639789369,0.55918934,3298.4,3297.1,0.98179227]
[1768639789570,0.86834862,3298.3,3297.1,0.98179227]
[1768639789778,0.55918934,3298.4,3297.1,0.98179227]
[1768639789972,0.86834862,3298.3,3297.1,0.98179227]
[1768639790175,0.55918934,3298.4,3297.1,0.98179227]
[1768639790366,0.86834862,3298.3,3297.1,0.98179227]
[1768639790566,0.55918934,3298.4,3297.1,0.98179227]
[1768639790766,0.86833259,3298.3,3297.1,0.98179227]
[1768639790975,0.55918934,3298.4,3297.1,0.98179227]
[1768639791176,0.86833259,3298.3,3297.1,0.98179227]
[1768639791376,0.55918934,3298.4,3297.1,0.98179227]
[1768639791576,0.86831916,3298.3,3297.1,0.98179227]
[1768639791767,0.55918934,3298.4,3297.1,0.98179227]
[1768639791965,0.86831916,3298.3,3297.1,0.98179227]
[1768639792171,0.55918934,3298.4,3297.1,0.98179227]
[1768639792373,0.86831916,3298.3,3297.1,0.98179227]
[1768639792574,0.55918934,3298.4,3297.1,0.98179227]
[1768639792773,0.86830795,3298.3,3297.1,0.98179227]
[1768639792965,1.54098161,3298.4,3297.1,0.98179227]
[1768639793168,1.12095205,3298.3,3297.0,0.98179227]
[1768639793373,1.54098161,3298.4,3297.0,0.98179227]
[1768639793669,1.12094002,3298.3,3297.0,0.98179227]
[1768639793865,1.54098161,3298.4,3297.0,0.98179227]
[1768639794078,1.12121657,3298.3,3297.0,0.98179227]
[1768639794277,1.54098161,3298.4,3297.0,0.98179227]
[1768639794478,1.1212068,3298.3,3297.0,0.98179227]
[1768639794677,1.12121599,3298.2,3297.0,0.98179227]
[1768639794878,1.54098161,3298.4,3297.0,0.98179227]
[1768639795080,1.12121599,3298.3,3297.0,0.98179227]
[1768639795276,1.12121605,3298.2,3297.0,0.98179227]
[1768639795478,1.54098161,3298.4,3297.0,0.98179227]
[1768639795680,1.12114406,3298.3,3297.0,0.98179227]
[1768639795879,1.12114406,3298.2,3297.0,0.98179227]
[1768639796081,1.54098161,3298.4,3297.0,0.98179227]
[1768639796272,1.1211441,3298.3,3297.0,0.98179227]
[1768639796474,1.1211441,3298.2,3297.0,0.98179227]
[1768639796673,1.54098161,3298.4,3297.0,0.98179227]
[1768639796883,1.12108862,3298.3,3297.0,0.98179227]
[1768639797174,1.12108862,3298.2,3297.0,0.98179227]
[1768639797382,0.55918934,3298.4,3296.9,0.55122216]
[1768639797584,1.12104432,3298.3,3296.9,0.55122216]
[1768639797787,1.12104432,3298.2,3296.9,0.55122216]
[1768639797988,0.55918934,3298.4,3296.9,0.55122216]
[1768639798188,1.12104431,3298.3,3296.9,0.55122216]
[1768639798490,1.12104431,3298.2,3296.9,0.55122216]
[1768639798689,0.55918934,3298.4,3296.9,0.55122216]
[1768639798878,1.12100848,3298.3,3296.9,0.55122216]
[1768639799082,1.12100848,3298.2,3296.9,0.55122216]
[1768639799382,0.55918934,3298.4,3296.9,0.55122216]
[1768639799582,1.12097971,3298.3,3296.9,0.55122216]
[1768639799782,1.12097971,3298.2,3296.9,0.55122216]
[1768639799995,0.55918934,3298.4,3296.9,0.55122216]
[1768639800295,1.12097971,3298.3,3296.9,0.55122216]
[1768639800496,1.12097971,3298.2,3296.9,0.55122216]
[1768639800802,0.55918934,3298.4,3296.9,0.55122216]
[1768639801094,1.12097778,3298.3,3296.9,0.55122216]
[1768639801392,1.12097778,3298.2,3296.9,0.55122216]
[1768639801593,0.55918934,3298.4,3296.9,0.55122216]
[1768639801796,1.12095599,3298.3,3296.9,0.55122216]
[1768639802092,1.12095599,3298.2,3296.9,0.55122216]
[1768639802283,0.8683726,3298.1,3296.9,0.55122216]
[1768639802484,0.55918934,3298.4,3296.9,0.55122216]
[1768639802684,1.12094449,3298.3,3296.9,0.55122216]
[1768639802882,1.12094449,3298.2,3296.9,0.55122216]
[1768639803094,0.86836343,3298.1,3296.9,0.55122216]
[1768639803294,0.55918934,3298.4,3296.9,0.55122216]
[1768639803496,1.12091755,3298.3,3296.9,0.55122216]
[1768639803693,0.86834236,3298.2,3296.9,0.55122216]
[1768639803994,0.86834236,3298.1,3296.9,0.55122216]
[1768639804187,0.55918934,3298.4,3296.9,0.55122216]
[1768639804486,1.12091194,3298.3,3296.9,0.55122216]
[1768639804687,0.86834221,3298.2,3296.9,0.55122216]
[1768639804887,0.86834221,3298.1,3296.9,0.55122216]
[1768639805088,0.55918934,3298.4,3296.9,0.55122216]
[1768639805290,1.12089564,3298.3,3296.9,0.55122216]
[1768639805591,0.86832522,3298.2,3296.9,0.55122216]
[1768639805789,0.86832522,3298.1,3296.9,0.55122216]
[1768639805983,0.55918934,3298.4,3296.9,0.55122216]
[1768639806187,1.12088275,3298.3,3296.9,0.55122216]
[1768639806388,0.86831522,3298.2,3296.9,0.55122216]
[1768639806593,0.86831522,3298.1,3296.9,0.55122216]
[1768639806794,0.55918934,3298.4,3296.9,0.55122216]
[1768639806994,1.12087541,3298.3,3296.9,0.55122216]
[1768639807187,0.86830951,3298.2,3296.9,0.55122216]
[1768639807388,0.86830951,3298.1,3296.9,0.55122216]
[1768639807594,0.55918934,3298.4,3296.9,0.55122216]
[1768639807794,1.12087586,3298.3,3296.9,0.55122216]
[1768639807998,0.86830982,3298.2,3296.9,0.55122216]
[1768639808198,0.86830982,3298.1,3296.9,0.55122216]
[1768639808388,0.55918934,3298.4,3296.9,0.55122216]
[1768639808587,1.12088153,3298.3,3296.9,0.55122216]
[1768639808788,0.86831419,3298.2,3296.9,0.55122216]
[1768639808991,0.86831419,3298.1,3296.9,0.55122216]
[1768639809188,0.55918934,3298.4,3296.9,0.55122216]
[1768639809392,1.12087624,3298.3,3296.9,0.55122216]
[1768639809596,0.8683101,3298.2,3296.9,0.55122216]
[1768639809796,0.8683101,3298.1,3296.9,0.55122216]
[1768639809998,0.55918934,3298.4,3296.9,0.55122216]
[1768639810197,1.12089224,3298.3,3296.9,0.55122216]
[1768639810397,0.86832249,3298.2,3296.9,0.55122216]
[1768639810598,0.86832249,3298.1,3296.9,0.55122216]
[1768639810804,0.55918934,3298.4,3296.9,0.55122216]
[1768639810999,1.12091122,3298.3,3296.9,0.55122216]
[1768639811193,0.86833717,3298.2,3296.9,0.55122216]
[1768639811394,0.86833717,3298.1,3296.9,0.55122216]
[1768639811692,0.55918934,3298.4,3296.9,0.55122216]
[1768639811893,1.12093785,3298.3,3296.9,0.55122216]
[1768639812192,0.86835782,3298.2,3296.9,0.55122216]
[1768639812395,0.55918934,3298.4,3296.9,0.55122216]
[1768639812597,1.12097238,3298.3,3296.9,0.55122216]
[1768639812795,0.8683846,3298.2,3296.9,0.55122216]
[1768639813099,0.55918934,3298.4,3296.9,0.55122216]
[1768639813291,1.12097238,3298.3,3296.9,0.55122216]
[1768639813493,0.8683846,3298.2,3296.9,0.55122216]
[1768639813692,0.55918934,3298.4,3296.9,0.55122216]
[1768639813893,1.12101634,3298.3,3296.9,0.55122216]
[1768639814093,0.86841869,3298.2,3296.9,0.55122216]
[1768639814391,0.55918934,3298.4,3296.9,0.55122216]
[1768639814687,1.12107221,3298.3,3296.9,0.55122216]
[1768639814891,0.868462,3298.2,3296.9,0.55122216]
[1768639815102,0.55918934,3298.4,3296.9,0.55122216]
[1768639815295,1.12107222,3298.3,3296.9,0.55122216]
[1768639815495,0.86846201,3298.2,3296.9,0.55122216]
[1768639815696,0.55918934,3298.4,3296.9,0.55122216]
[1768639815893,1.12108377,3298.3,3296.9,0.55122216]
[1768639816094,0.86847099,3298.2,3296.9,0.55122216]
[1768639816303,0.55918934,3298.4,3296.9,0.55122216]
[1768639816600,1.12109768,3298.3,3296.9,0.55122216]
[1768639816801,0.8684818,3298.2,3296.9,0.55122216]
[1768639816996,0.55918934,3298.4,3296.9,0.55122216]
[1768639817188,1.12109767,3298.3,3296.9,0.55122216]
[1768639817392,0.86848179,3298.2,3296.9,0.55122216]
[1768639817692,0.55918934,3298.4,3296.9,0.55122216]
[1768639817888,1.12111525,3298.3,3296.9,0.55122216]
[1768639818102,0.86849545,3298.2,3296.9,0.55122216]
[1768639818304,0.55918934,3298.4,3296.9,0.55122216]
[1768639818503,1.12113702,3298.3,3296.9,0.55122216]
[1768639818698,0.86851236,3298.2,3296.9,0.55122216]
[1768639818899,2.25718934,3298.4,3296.9,0.55122216]
[1768639819095,1.12113721,3298.3,3296.9,0.55122216]
[1768639819291,0.8685125,3298.2,3296.9,0.55122216]
[1768639819502,2.25718934,3298.4,3296.9,0.55122216]
[1768639819701,1.12116357,3298.3,3296.9,0.55122216]
[1768639819891,0.86853285,3298.2,3296.9,0.55122216]
[1768639820094,2.25718934,3298.4,3296.9,0.55122216]
[1768639820395,1.12116357,3298.3,3296.9,0.55122216]
[1768639820591,0.86853285,3298.2,3296.9,0.55122216]
[1768639820894,2.25718934,3298.4,3296.9,0.55122216]
[1768639821091,1.12119636,3298.3,3296.9,0.55122216]
[1768639821297,2.25718934,3298.4,3296.9,0.55122216]
[1768639821298,0.86855828,3298.2,3296.9,0.55122216]
[1768639821496,2.25718934,3298.4,3296.9,0.55122216]
[1768639821791,1.12123645,3298.3,3296.9,0.55122216]
[1768639821993,0.86858937,3298.2,3296.9,0.55122216]
[1768639822196,2.25718934,3298.4,3296.9,0.55122216]
[1768639822397,1.1212765,3298.3,3296.9,0.55122216]
[1768639822599,2.25718934,3298.4,3296.9,0.55122216]
[1768639822600,0.86862833,3298.2,3296.9,0.55122216]
[1768639822800,2.25718934,3298.4,3296.9,0.55122216]
[1768639823010,1.12128669,3298.3,3296.9,0.55122216]
[1768639823200,0.86862833,3298.2,3296.9,0.55122216]
[1768639823504,1.698,3298.5,3296.9,0.55122216]
[1768639823701,1.12130972,3298.4,3296.9,0.55122216]
[1768639823907,1.12130972,3298.3,3296.9,0.55122216]
[1768639824101,0.86864988,3298.2,3296.9,0.55122216]
[1768639824302,1.698,3298.5,3296.9,0.55122216]
[1768639824503,1.12172526,3298.4,3296.9,0.55122216]
[1768639824704,1.12172526,3298.3,3296.9,0.55122216]
[1768639824894,0.86904839,3298.2,3296.9,0.55122216]
[1768639825098,1.698,3298.5,3296.9,0.55122216]
[1768639825297,1.12172526,3298.4,3296.9,0.55122216]
[1768639825498,1.12172526,3298.3,3296.9,0.55122216]
[1768639825795,0.86904839,3298.2,3296.9,0.55122216]
[1768639825999,1.698,3298.5,3296.9,0.55122216]
[1768639826196,1.12170289,3298.4,3296.9,0.55122216]
[1768639826401,0.86903144,3298.3,3296.9,0.55122216]
[1768639826700,0.86903144,3298.2,3296.9,0.55122216]
[1768639826900,1.698,3298.5,3296.9,0.55122216]
[1768639827100,1.1216835,3298.4,3296.9,0.55122216]
[1768639827300,0.86901675,3298.3,3296.9,0.55122216]
[1768639827498,0.86901675,3298.2,3296.9,0.55122216]
[1768639827709,1.698,3298.5,3296.9,0.55122216]
[1768639827908,1.12166648,3298.4,3296.9,0.55122216]
[1768639828101,0.86900382,3298.3,3296.9,0.55122216]
[1768639828302,0.86900382,3298.2,3296.9,0.55122216]
[1768639828498,1.698,3298.5,3296.9,0.55122216]
[1768639828703,1.12165227,3298.4,3296.9,0.55122216]
[1768639828906,0.86899301,3298.3,3296.9,0.55122216]
[1768639829104,0.86899301,3298.2,3296.9,0.55122216]
[1768639829311,1.698,3298.5,3296.9,0.55122216]
[1768639829511,1.12163811,3298.4,3296.9,0.55122216]
[1768639829715,0.86898223,3298.3,3296.9,0.55122216]
[1768639829908,0.86898223,3298.2,3296.9,0.55122216]
[1768639830109,1.698,3298.5,3296.9,0.55122216]
[1768639830308,1.12163811,3298.4,3296.9,0.55122216]
[1768639830509,0.86898223,3298.3,3296.9,0.55122216]
[1768639830711,0.86898223,3298.2,3296.9,0.55122216]
[1768639830914,1.698,3298.5,3296.9,0.55122216]
[1768639831101,1.12162932,3298.4,3296.9,0.55122216]
[1768639831304,0.86897563,3298.3,3296.9,0.55122216]
[1768639831506,0.86897563,3298.2,3296.9,0.55122216]
[1768639831710,1.698,3298.5,3296.9,0.55122216]
[1768639831912,1.12161802,3298.4,3296.9,0.55122216]
[1768639832109,1.698,3298.5,3296.9,0.55122216]
[1768639832110,0.868967,3298.3,3296.9,0.55122216]
[1768639832310,0.868967,3298.2,3296.9,0.55122216]
[1768639832512,1.698,3298.5,3296.9,0.55122216]
[1768639832708,1.1216076,3298.4,3296.9,0.55122216]
[1768639832909,0.86895905,3298.3,3296.9,0.55122216]
[1768639833109,1.1216076,3298.2,3296.9,0.55122216]
[1768639833309,1.698,3298.5,3296.9,0.55122216]
[1768639833607,1.12160233,3298.4,3296.9,0.55122216]
[1768639833806,1.12160233,3298.3,3296.9,0.55122216]
[1768639834006,1.698,3298.5,3296.9,0.55122216]
[1768639834007,1.12160233,3298.2,3296.9,0.55122216]
[1768639834202,1.698,3298.5,3296.9,0.55122216]
[1768639834413,1.12159846,3298.4,3296.9,0.55122216]
[1768639834612,1.12159846,3298.3,3296.9,0.55122216]
[1768639834815,1.12159846,3298.2,3296.9,0.55122216]
[1768639835010,1.698,3298.5,3296.9,0.55122216]
[1768639835203,1.12163919,3298.4,3296.9,0.55122216]
[1768639835408,1.12163919,3298.3,3296.9,0.55122216]
[1768639835703,1.12163919,3298.2,3296.9,0.55122216]
[1768639836004,1.698,3298.5,3296.9,0.55122216]
[1768639836202,1.1216417,3298.4,3296.9,0.55122216]
[1768639836403,1.1216417,3298.3,3296.9,0.55122216]
[1768639836606,1.1216417,3298.2,3296.9,0.55122216]
[1768639836804,1.698,3298.5,3296.9,0.55122216]
[1768639837004,1.12164195,3298.4,3296.9,0.55122216]
[1768639837208,1.12164195,3298.3,3296.9,0.55122216]
[1768639837507,1.12164195,3298.2,3296.9,0.55122216]
[1768639837706,1.698,3298.5,3296.9,0.55122216]
[1768639837909,1.1216455,3298.4,3296.9,0.55122216]
[1768639838110,1.1216455,3298.3,3296.9,0.55122216]
[1768639838312,1.1216455,3298.2,3296.9,0.55122216]
[1768639838610,1.698,3298.5,3296.9,0.55122216]
[1768639838806,1.12164998,3298.4,3296.9,0.55122216]
[1768639839010,1.12164998,3298.3,3296.9,0.55122216]
[1768639839219,1.12164998,3298.2,3296.9,0.55122216]
[1768639839419,2.20763922,3298.5,3296.9,0.55122216]
[1768639839620,1.12165415,3298.4,3296.9,0.55122216]
[1768639839921,1.12165415,3298.3,3296.9,0.55122216]
[1768639840122,1.12165415,3298.2,3296.9,0.55122216]
[1768639840317,2.20763922,3298.5,3296.9,0.55122216]
[1768639840518,1.12165755,3298.4,3296.9,0.55122216]
[1768639840710,1.12165755,3298.3,3296.9,0.55122216]
[1768639840915,1.12165755,3298.2,3296.9,0.55122216]
[1768639841115,2.20763922,3298.5,3296.9,0.55122216]
[1768639841317,1.12165754,3298.4,3296.9,0.55122216]
[1768639841523,1.12165754,3298.3,3296.9,0.55122216]
[1768639841823,1.12165754,3298.2,3296.9,0.55122216]
[1768639842022,2.20763922,3298.5,3296.9,0.55122216]
[1768639842223,1.12166138,3298.4,3296.9,0.55122216]
[1768639842423,1.12166138,3298.3,3296.9,0.55122216]
[1768639842623,1.12166138,3298.2,3296.9,0.55122216]
[1768639842923,2.20763922,3298.5,3296.9,0.55122216]
[1768639843122,1.12166505,3298.4,3296.9,0.55122216]
[1768639843322,1.12166505,3298.3,3296.9,0.55122216]
[1768639843528,0.86900242,3298.2,3296.9,0.55122216]
[1768639843726,2.20763922,3298.5,3296.9,0.55122216]
[1768639843926,1.12166926,3298.4,3296.9,0.55122216]
[1768639844127,1.12166926,3298.3,3296.9,0.55122216]
[1768639844427,0.86900571,3298.2,3296.9,0.55122216]
[1768639844627,2.20763922,3298.5,3296.9,0.55122216]
[1768639844827,1.12167345,3298.4,3296.9,0.55122216]
[1768639845019,1.12167345,3298.3,3296.9,0.55122216]
[1768639845215,0.869009,3298.2,3296.9,0.55122216]
[1768639845526,2.20763922,3298.5,3296.9,0.55122216]
[1768639845723,1.12167785,3298.4,3296.9,0.55122216]
[1768639846032,1.12167785,3298.3,3296.9,0.55122216]
[1768639846227,0.86901245,3298.2,3296.9,0.55122216]
[1768639846415,0.50963922,3298.4,3296.9,0.55122216]
[1768639846619,1.12168243,3298.3,3296.9,0.55122216]
[1768639846825,0.86901606,3298.2,3296.9,0.55122216]
[1768639847027,0.50963922,3298.4,3296.9,0.55122216]
[1768639847226,1.12168247,3298.3,3296.9,0.55122216]
[1768639847426,0.86901605,3298.2,3296.9,0.55122216]
[1768639847629,0.50963922,3298.4,3296.9,0.55122216]
[1768639847822,1.12168606,3298.3,3296.9,0.55122216]
[1768639848023,0.86901889,3298.2,3296.9,0.55122216]
[1768639848328,0.50963922,3298.4,3296.9,0.55122216]
[1768639848529,1.12169559,3298.3,3296.9,0.55122216]
[1768639848729,0.86902588,3298.2,3296.9,0.55122216]
[1768639849029,0.50963922,3298.4,3296.9,0.55122216]
[1768639849227,1.12169559,3298.3,3296.9,0.55122216]
[1768639849428,0.86902588,3298.2,3296.9,0.55122216]
[1768639849727,0.50963922,3298.4,3296.9,0.55122216]
[1768639849925,1.12169739,3298.3,3296.9,0.55122216]
[1768639850124,0.8690273,3298.2,3296.9,0.55122216]
[1768639850317,0.50963922,3298.4,3296.9,0.55122216]
[1768639850520,1.12169919,3298.3,3296.9,0.55122216]
[1768639850730,0.86902871,3298.2,3296.9,0.55122216]
[1768639850921,0.50963922,3298.4,3296.9,0.55122216]
[1768639851118,1.12169919,3298.3,3296.9,0.55122216]
[1768639851322,0.86902871,3298.2,3296.9,0.55122216]
[1768639851531,0.50963922,3298.4,3296.9,0.55122216]
[1768639851832,1.12170093,3298.3,3296.9,0.55122216]
[1768639852032,0.86903008,3298.2,3296.9,0.55122216]
[1768639852332,0.86903008,3298.1,3296.9,0.55122216]
[1768639852519,0.50963922,3298.4,3296.9,0.55122216]
[1768639852720,1.1217027,3298.3,3296.9,0.55122216]
[1768639852930,0.86903147,3298.2,3296.9,0.55122216]
[1768639853228,0.86903147,3298.1,3296.9,0.55122216]
[1768639853538,0.50963922,3298.4,3296.9,0.55122216]
[1768639853730,1.12170053,3298.3,3296.9,0.55122216]
[1768639854034,0.86902947,3298.2,3296.9,0.55122216]
[1768639854335,0.86902947,3298.1,3296.9,0.55122216]
[1768639854536,0.50963922,3298.4,3296.9,0.55122216]
[1768639854723,1.12189433,3298.3,3296.9,0.55122216]
[1768639854928,0.86922246,3298.2,3296.9,0.55122216]
[1768639855139,0.86922246,3298.1,3296.9,0.55122216]
[1768639855334,0.50963922,3298.4,3296.9,0.55122216]
[1768639855634,1.12189952,3298.3,3296.9,0.55122216]
[1768639855829,0.50963922,3298.4,3296.9,0.55122216]
[1768639855830,0.86922651,3298.2,3296.9,0.55122216]
[1768639856033,0.86922651,3298.1,3296.9,0.55122216]
[1768639856231,0.50963922,3298.4,3296.9,0.55122216]
[1768639856433,1.12190624,3298.3,3296.9,0.55122216]
[1768639856634,0.86923168,3298.2,3296.9,0.55122216]
[1768639856837,0.86923168,3298.1,3296.9,0.55122216]
[1768639857037,0.50963922,3298.4,3296.9,0.55122216]
[1768639857242,1.12190643,3298.3,3296.9,0.55122216]
[1768639857428,0.86923181,3298.2,3296.9,0.55122216]
[1768639857632,0.86923181,3298.1,3296.9,0.55122216]
[1768639857833,0.50963922,3298.4,3296.9,0.55122216]
[1768639858029,1.12191491,3298.3,3296.9,0.55122216]
[1768639858234,0.86923837,3298.2,3296.9,0.55122216]
[1768639858434,0.86923837,3298.1,3296.9,0.55122216]
[1768639858639,0.50963922,3298.4,3296.9,0.55122216]
[1768639858830,1.12192476,3298.3,3296.9,0.55122216]